[Event "*** Biggest EVER Titled Tuesday"]
[Site "Chess.com"]
[Date "2018.04.17"]
[Round "3"]
[White "djogrodek1"]
[Black "AlexTriapishko"]
[Result "1/2-1/2"]
[WhiteElo "2454"]
[BlackElo "2688"]
[TimeControl "180+2"]
[EndTime "13:42:02 PDT"]
[Termination "Game drawn - insufficient material"]

1. e4 {[%clk 0:03:01.9]} 1... c6 {[%clk 0:02:37.1]} 2. d4 {[%clk 0:03:02.7]}
2... d5 {[%clk 0:02:36.6]} 3. e5 {[%clk 0:03:03.4]} 3... Bf5 {[%clk 0:02:36.5]}
4. h4 {[%clk 0:03:04.8]} 4... h5 {[%clk 0:02:32.7]} 5. Bd3 {[%clk 0:03:05.8]}
5... Bxd3 {[%clk 0:02:32.7]} 6. Qxd3 {[%clk 0:03:07.7]} 6... e6 {[%clk
0:02:34.2]} 7. Bg5 {[%clk 0:03:08.5]} 7... Qa5+ {[%clk 0:02:33.7]} 8. Nd2 {[%clk
0:03:09.9]} 8... Be7 {[%clk 0:02:33.4]} 9. Nf3 {[%clk 0:03:10.2]} 9... Nd7
{[%clk 0:02:33.3]} 10. O-O {[%clk 0:03:09]} 10... Nh6 {[%clk 0:02:28.2]} 11.
Bxh6 {[%clk 0:03:09]} 11... Rxh6 {[%clk 0:02:27.9]} 12. c4 {[%clk 0:03:10.5]}
12... Kf8 {[%clk 0:02:27.1]} 13. a3 {[%clk 0:03:08]} 13... dxc4 {[%clk
0:02:17.7]} 14. Nxc4 {[%clk 0:03:07.6]} 14... Qc7 {[%clk 0:02:18.2]} 15. b4
{[%clk 0:03:07.1]} 15... g6 {[%clk 0:02:16.3]} 16. g3 {[%clk 0:03:03.8]} 16...
Kg7 {[%clk 0:02:16.9]} 17. Nfd2 {[%clk 0:03:04.7]} 17... Nb6 {[%clk 0:02:16.2]}
18. Ne4 {[%clk 0:02:55.9]} 18... Nxc4 {[%clk 0:02:13]} 19. Qxc4 {[%clk
0:02:57.8]} 19... Rd8 {[%clk 0:02:14.4]} 20. b5 {[%clk 0:02:56.2]} 20... Qb6
{[%clk 0:02:07.4]} 21. bxc6 {[%clk 0:02:13.1]} 21... Rxd4 {[%clk 0:02:05.1]} 22.
Qc3 {[%clk 0:02:10.3]} 22... Rxe4 {[%clk 0:02:04.5]} 23. c7 {[%clk 0:02:07.4]}
23... Rh8 {[%clk 0:02:05.8]} 24. c8=Q {[%clk 0:02:05.8]} 24... Rxc8 {[%clk
0:02:07.1]} 25. Qxc8 {[%clk 0:02:07.7]} 25... Bc5 {[%clk 0:01:56.3]} 26. Rab1
{[%clk 0:02:04.2]} 26... Qc6 {[%clk 0:01:01.6]} 27. Qxb7 {[%clk 0:01:45.1]}
27... Qa4 {[%clk 0:00:50.2]} 28. Rb4 {[%clk 0:00:59.3]} 28... Rxb4 {[%clk
0:00:41.9]} 29. axb4 {[%clk 0:01:00.4]} 29... Bxb4 {[%clk 0:00:43.8]} 30. Rc1
{[%clk 0:01:01.8]} 30... Bc3 {[%clk 0:00:42.6]} 31. Qc7 {[%clk 0:00:42]} 31...
Bd4 {[%clk 0:00:25.4]} 32. Qc4 {[%clk 0:00:17.8]} 32... Qa3 {[%clk 0:00:24.2]}
33. Kg2 {[%clk 0:00:14.7]} 33... Bxe5 {[%clk 0:00:21.8]} 34. Rd1 {[%clk
0:00:14.5]} 34... Qe7 {[%clk 0:00:13.7]} 35. Rd3 {[%clk 0:00:15.1]} 35... a5
{[%clk 0:00:14]} 36. Qb5 {[%clk 0:00:13.9]} 36... Bf6 {[%clk 0:00:08.8]} 37.
Qxa5 {[%clk 0:00:14.9]} 37... Qb7+ {[%clk 0:00:10.2]} 38. Kh2 {[%clk 0:00:12.1]}
38... Qe4 {[%clk 0:00:09.8]} 39. Qa3 {[%clk 0:00:11.6]} 39... Qe2 {[%clk
0:00:10.2]} 40. Rf3 {[%clk 0:00:11.6]} 40... Bd4 {[%clk 0:00:10.8]} 41. Kg2
{[%clk 0:00:12.9]} 41... Bf6 {[%clk 0:00:06]} 42. Qb3 {[%clk 0:00:13.4]} 42...
Qe4 {[%clk 0:00:06.8]} 43. Qd3 {[%clk 0:00:11.2]} 43... Qg4 {[%clk 0:00:07.4]}
44. Qe2 {[%clk 0:00:11.3]} 44... Qd4 {[%clk 0:00:05.7]} 45. Qd3 {[%clk
0:00:11.7]} 45... Qe5 {[%clk 0:00:05.4]} 46. Re3 {[%clk 0:00:12.7]} 46... Qc5
{[%clk 0:00:06.5]} 47. Qe4 {[%clk 0:00:13.8]} 47... Bd4 {[%clk 0:00:07.1]} 48.
Rf3 {[%clk 0:00:14.9]} 48... Bf6 {[%clk 0:00:05.6]} 49. Qf4 {[%clk 0:00:16.1]}
49... Qe7 {[%clk 0:00:07]} 50. Rb3 {[%clk 0:00:15.5]} 50... Qc5 {[%clk
0:00:07.4]} 51. Qf3 {[%clk 0:00:16.9]} 51... Qc4 {[%clk 0:00:08.2]} 52. Rb7
{[%clk 0:00:18.3]} 52... Qd4 {[%clk 0:00:09.2]} 53. Rc7 {[%clk 0:00:17.7]} 53...
Qd6 {[%clk 0:00:09.5]} 54. Qb7 {[%clk 0:00:18.1]} 54... Qd5+ {[%clk 0:00:08.3]}
55. Qxd5 {[%clk 0:00:19.2]} 55... exd5 {[%clk 0:00:10.2]} 56. Rd7 {[%clk
0:00:21.1]} 56... d4 {[%clk 0:00:10.5]} 57. Kf3 {[%clk 0:00:22.7]} 57... Kf8
{[%clk 0:00:09.4]} 58. Ke4 {[%clk 0:00:24.1]} 58... Ke8 {[%clk 0:00:10.7]} 59.
Ra7 {[%clk 0:00:25.6]} 59... Kf8 {[%clk 0:00:10.4]} 60. Ra6 {[%clk 0:00:24.8]}
60... Kg7 {[%clk 0:00:09.3]} 61. f4 {[%clk 0:00:25.9]} 61... Be7 {[%clk
0:00:08.5]} 62. Kxd4 {[%clk 0:00:20.7]} 62... Bb4 {[%clk 0:00:10]} 63. Ra2
{[%clk 0:00:18.9]} 63... Be1 {[%clk 0:00:08.7]} 64. Rg2 {[%clk 0:00:19]} 64...
Kf6 {[%clk 0:00:08.3]} 65. Ke4 {[%clk 0:00:20.2]} 65... Ke6 {[%clk 0:00:06.4]}
66. Kf3 {[%clk 0:00:21.7]} 66... Kf5 {[%clk 0:00:06.9]} 67. Re2 {[%clk
0:00:22.7]} 67... Bc3 {[%clk 0:00:08.3]} 68. Rc2 {[%clk 0:00:23.7]} 68... Bd4
{[%clk 0:00:07.7]} 69. Rc4 {[%clk 0:00:24.7]} 69... Bb2 {[%clk 0:00:08.4]} 70.
Rc5+ {[%clk 0:00:24.1]} 70... Kf6 {[%clk 0:00:09.1]} 71. g4 {[%clk 0:00:21.5]}
71... hxg4+ {[%clk 0:00:09.8]} 72. Kxg4 {[%clk 0:00:23.4]} 72... Bd4 {[%clk
0:00:11.2]} 73. Rc6+ {[%clk 0:00:24.1]} 73... Kg7 {[%clk 0:00:11.7]} 74. f5
{[%clk 0:00:25.6]} 74... Bf6 {[%clk 0:00:08.3]} 75. fxg6 {[%clk 0:00:23.5]}
75... fxg6 {[%clk 0:00:09.6]} 76. Rc7+ {[%clk 0:00:22]} 76... Kh6 {[%clk
0:00:10]} 77. Rc6 {[%clk 0:00:21.7]} 77... Kg7 {[%clk 0:00:09.1]} 78. Ra6 {[%clk
0:00:23.2]} 78... Bd8 {[%clk 0:00:07.3]} 79. Ra7+ {[%clk 0:00:23.9]} 79... Kh6
{[%clk 0:00:08.5]} 80. Rf7 {[%clk 0:00:25.1]} 80... Bb6 {[%clk 0:00:08.2]} 81.
Rd7 {[%clk 0:00:25.6]} 81... Bf2 {[%clk 0:00:06.4]} 82. Rd6 {[%clk 0:00:26.3]}
82... Kg7 {[%clk 0:00:06.8]} 83. Re6 {[%clk 0:00:27.8]} 83... Kf7 {[%clk
0:00:04.6]} 84. Ra6 {[%clk 0:00:25.8]} 84... Bc5 {[%clk 0:00:05.7]} 85. Rc6
{[%clk 0:00:26]} 85... Be7 {[%clk 0:00:06.3]} 86. Rc7 {[%clk 0:00:27]} 86... Ke6
{[%clk 0:00:06.8]} 87. Rc8 {[%clk 0:00:27.7]} 87... Kf7 {[%clk 0:00:06.9]} 88.
Rc2 {[%clk 0:00:28.9]} 88... Ke6 {[%clk 0:00:08.1]} 89. Rf2 {[%clk 0:00:30]}
89... Bf6 {[%clk 0:00:08.6]} 90. Rg2 {[%clk 0:00:26.1]} 90... Kf7 {[%clk
0:00:09.1]} 91. Ra2 {[%clk 0:00:27.6]} 91... Ke6 {[%clk 0:00:10]} 92. Ra6+
{[%clk 0:00:29]} 92... Kf7 {[%clk 0:00:10.8]} 93. Rc6 {[%clk 0:00:30.5]} 93...
Be7 {[%clk 0:00:11.6]} 94. Rc4 {[%clk 0:00:28.7]} 94... Ke6 {[%clk 0:00:12.7]}
95. Rf4 {[%clk 0:00:29.2]} 95... Bf6 {[%clk 0:00:12.1]} 96. Kf3 {[%clk
0:00:29.5]} 96... Be5 {[%clk 0:00:11.6]} 97. Rg4 {[%clk 0:00:29.1]} 97... Kf7
{[%clk 0:00:08.2]} 98. Ke4 {[%clk 0:00:29.3]} 98... Bf6 {[%clk 0:00:09.5]} 99.
Kd5 {[%clk 0:00:30.6]} 99... Bd8 {[%clk 0:00:08.2]} 100. Kd6 {[%clk 0:00:30.6]}
100... Kf6 {[%clk 0:00:05.8]} 101. Kd7 {[%clk 0:00:31.7]} 101... Ba5 {[%clk
0:00:06.1]} 102. Ke8 {[%clk 0:00:32.5]} 102... Be1 {[%clk 0:00:05.4]} 103. Kf8
{[%clk 0:00:32.4]} 103... Kf5 {[%clk 0:00:06.6]} 104. Rg5+ {[%clk 0:00:33.3]}
104... Kf6 {[%clk 0:00:07.8]} 105. Rg4 {[%clk 0:00:32.3]} 105... Kf5 {[%clk
0:00:09.1]} 106. Ra4 {[%clk 0:00:33.8]} 106... Bxh4 {[%clk 0:00:08.8]} 107. Rxh4
{[%clk 0:00:34.1]} 107... g5 {[%clk 0:00:10.1]} 108. Rh1 {[%clk 0:00:34.9]}
108... g4 {[%clk 0:00:09.6]} 109. Kg7 {[%clk 0:00:36.4]} 109... g3 {[%clk
0:00:10.9]} 110. Kh6 {[%clk 0:00:37.8]} 110... Kg4 {[%clk 0:00:11.8]} 111. Kg6
{[%clk 0:00:38.5]} 111... g2 {[%clk 0:00:13.1]} 112. Ra1 {[%clk 0:00:39]} 112...
Kg3 {[%clk 0:00:13.1]} 113. Kf5 {[%clk 0:00:38.7]} 113... Kh2 {[%clk 0:00:14.1]}
114. Kg4 {[%clk 0:00:39.2]} 114... g1=Q+ {[%clk 0:00:14.9]} 115. Rxg1 {[%clk
0:00:40.7]} 115... Kxg1 {[%clk 0:00:16.8]} 1/2-1/2

[Event "*** Biggest EVER Titled Tuesday"]
[Site "Chess.com"]
[Date "2018.04.17"]
[Round "3"]
[White "Bryakin_Mikhail"]
[Black "colemman"]
[Result "0-1"]
[WhiteElo "2617"]
[BlackElo "2503"]
[TimeControl "180+2"]
[EndTime "13:44:30 PDT"]
[Termination "colemman won by resignation"]

1. d4 {[%clk 0:02:58.7]} 1... d5 {[%clk 0:03:00.1]} 2. c4 {[%clk 0:02:58.8]}
2... c6 {[%clk 0:03:01.5]} 3. Nf3 {[%clk 0:02:59.4]} 3... Nf6 {[%clk 0:03:03]}
4. Nc3 {[%clk 0:03:00.9]} 4... e6 {[%clk 0:03:04.3]} 5. Bg5 {[%clk 0:03:01.4]}
5... Nbd7 {[%clk 0:03:05.7]} 6. e3 {[%clk 0:02:54.1]} 6... Qa5 {[%clk
0:03:06.2]} 7. Nd2 {[%clk 0:02:54.9]} 7... dxc4 {[%clk 0:03:06.3]} 8. Bxf6
{[%clk 0:02:54.3]} 8... Nxf6 {[%clk 0:03:08.1]} 9. Nxc4 {[%clk 0:02:49.6]} 9...
Qc7 {[%clk 0:03:09.5]} 10. Be2 {[%clk 0:02:44.4]} 10... Be7 {[%clk 0:03:10.9]}
11. O-O {[%clk 0:02:44.3]} 11... O-O {[%clk 0:03:12.4]} 12. a4 {[%clk
0:02:29.2]} 12... Rd8 {[%clk 0:03:13.5]} 13. Qc2 {[%clk 0:02:27.8]} 13... Bd7
{[%clk 0:03:14.4]} 14. Bf3 {[%clk 0:02:20.9]} 14... Be8 {[%clk 0:03:15.3]} 15.
Rfd1 {[%clk 0:02:20.2]} 15... Rac8 {[%clk 0:03:15.6]} 16. h3 {[%clk 0:02:07.8]}
16... Nd5 {[%clk 0:02:47.7]} 17. Qb3 {[%clk 0:01:53.5]} 17... Rb8 {[%clk
0:02:34.4]} 18. a5 {[%clk 0:01:50.3]} 18... Rdc8 {[%clk 0:02:34.6]} 19. Ne5
{[%clk 0:01:46.5]} 19... Bd6 {[%clk 0:02:31.9]} 20. Nc4 {[%clk 0:01:44.8]} 20...
Be7 {[%clk 0:02:32.5]} 21. Be4 {[%clk 0:01:44.2]} 21... g6 {[%clk 0:02:27.1]}
22. Bf3 {[%clk 0:01:40]} 22... Kg7 {[%clk 0:02:16.2]} 23. Ne4 {[%clk 0:01:35.1]}
23... h6 {[%clk 0:02:04.6]} 24. Nc5 {[%clk 0:01:35.1]} 24... Nf6 {[%clk
0:02:03]} 25. Rac1 {[%clk 0:01:20.6]} 25... Nd7 {[%clk 0:02:02.3]} 26. Qc3
{[%clk 0:01:04.7]} 26... Bf6 {[%clk 0:01:56.9]} 27. b4 {[%clk 0:01:04.8]} 27...
Kh7 {[%clk 0:01:51.2]} 28. g3 {[%clk 0:01:02.9]} 28... Bg7 {[%clk 0:01:50.3]}
29. Kg2 {[%clk 0:01:03.6]} 29... Nf6 {[%clk 0:01:44.5]} 30. h4 {[%clk
0:01:03.8]} 30... h5 {[%clk 0:01:44.4]} 31. Qc2 {[%clk 0:01:00.6]} 31... Kg8
{[%clk 0:01:43.3]} 32. Rb1 {[%clk 0:00:58.8]} 32... Bf8 {[%clk 0:01:42.3]} 33.
Be2 {[%clk 0:00:55.9]} 33... Nd5 {[%clk 0:01:40.6]} 34. Bd3 {[%clk 0:00:56.8]}
34... Rd8 {[%clk 0:01:40]} 35. Ne5 {[%clk 0:00:49.9]} 35... Bd6 {[%clk
0:01:35.4]} 36. Nc4 {[%clk 0:00:33]} 36... Be7 {[%clk 0:01:36.3]} 37. Re1 {[%clk
0:00:22.8]} 37... Qc8 {[%clk 0:01:33.3]} 38. Ne5 {[%clk 0:00:23.6]} 38... Nc7
{[%clk 0:01:33.1]} 39. Nxg6 {[%clk 0:00:21]} 39... fxg6 {[%clk 0:01:33.1]} 40.
Bxg6 {[%clk 0:00:22.9]} 40... Bxc5 {[%clk 0:01:23.4]} 41. bxc5 {[%clk
0:00:22.3]} 41... Qd7 {[%clk 0:01:21.4]} 42. Bh7+ {[%clk 0:00:17.3]} 42... Qxh7
{[%clk 0:01:20.6]} 43. Qc4 {[%clk 0:00:14.4]} 43... Bg6 {[%clk 0:01:19.2]} 44.
Rb2 {[%clk 0:00:15.4]} 44... Bd3 {[%clk 0:01:18.6]} 45. Qc3 {[%clk 0:00:14.1]}
45... Nd5 {[%clk 0:01:18]} 46. Qb3 {[%clk 0:00:14.8]} 46... Kh8 {[%clk
0:01:18.2]} 47. f3 {[%clk 0:00:13.8]} 47... Rg8 {[%clk 0:01:17.2]} 48. Kf2
{[%clk 0:00:15]} 48... Rgf8 {[%clk 0:01:12.5]} 49. Kg2 {[%clk 0:00:13.2]} 49...
Bf5 {[%clk 0:01:02]} 50. e4 {[%clk 0:00:13.1]} 50... Bg6 {[%clk 0:00:52.2]} 51.
exd5 {[%clk 0:00:13.8]} 51... exd5 {[%clk 0:00:54.1]} 52. Rbe2 {[%clk
0:00:14.6]} 52... Rfe8 {[%clk 0:00:54.6]} 53. Re5 {[%clk 0:00:15.3]} 53... Qg7
{[%clk 0:00:51.8]} 54. Qc3 {[%clk 0:00:08.7]} 54... Rxe5 {[%clk 0:00:49.2]} 55.
Rxe5 {[%clk 0:00:10.6]} 55... Re8 {[%clk 0:00:49]} 56. Rxe8+ {[%clk 0:00:11.7]}
56... Bxe8 {[%clk 0:00:50.4]} 57. Qe3 {[%clk 0:00:13.6]} 57... Bg6 {[%clk
0:00:49.7]} 58. Qf4 {[%clk 0:00:14.2]} 58... a6 {[%clk 0:00:50.1]} 59. Qb8+
{[%clk 0:00:15]} 59... Kh7 {[%clk 0:00:51.1]} 60. Qf4 {[%clk 0:00:16.5]} 60...
Qf7 {[%clk 0:00:51.8]} 61. Qd6 {[%clk 0:00:16.2]} 61... Bf5 {[%clk 0:00:50.6]}
62. Qe5 {[%clk 0:00:16.5]} 62... Bd3 {[%clk 0:00:48.9]} 63. Qg5 {[%clk
0:00:15.7]} 63... Bg6 {[%clk 0:00:47]} 64. Qe5 {[%clk 0:00:16.5]} 64... Kg8
{[%clk 0:00:44.7]} 65. Qb8+ {[%clk 0:00:17]} 65... Kg7 {[%clk 0:00:44.8]} 66.
Qe5+ {[%clk 0:00:18.1]} 66... Kh7 {[%clk 0:00:46.4]} 67. Qg5 {[%clk 0:00:17.2]}
67... Qd7 {[%clk 0:00:47.2]} 68. Qe5 {[%clk 0:00:16]} 68... Bf7 {[%clk 0:00:48]}
69. Qf6 {[%clk 0:00:15.1]} 69... Qe6 {[%clk 0:00:47.8]} 70. Qf4 {[%clk
0:00:14.9]} 70... Qe2+ {[%clk 0:00:45.8]} 71. Kg1 {[%clk 0:00:16.4]} 71... Qe7
{[%clk 0:00:37.5]} 72. Kg2 {[%clk 0:00:16.2]} 72... Bg6 {[%clk 0:00:37.9]} 73.
Kf2 {[%clk 0:00:17]} 73... Bd3 {[%clk 0:00:37.2]} 74. Qd2 {[%clk 0:00:17.1]}
74... Bf5 {[%clk 0:00:36.8]} 75. Qf4 {[%clk 0:00:17]} 75... Bg6 {[%clk
0:00:38.2]} 76. Qd2 {[%clk 0:00:15.6]} 76... Bb1 {[%clk 0:00:34.8]} 77. Qc1
{[%clk 0:00:14.6]} 77... Bd3 {[%clk 0:00:35.2]} 78. Qd2 {[%clk 0:00:15.3]} 78...
Bg6 {[%clk 0:00:36.7]} 79. Qf4 {[%clk 0:00:16.2]} 79... Qf7 {[%clk 0:00:37.9]}
80. Qg5 {[%clk 0:00:11.8]} 80... Qg7 {[%clk 0:00:37.4]} 81. Qf4 {[%clk
0:00:12.4]} 81... Kg8 {[%clk 0:00:37.7]} 82. Qb8+ {[%clk 0:00:13.2]} 82... Kh7
{[%clk 0:00:38.1]} 83. Qf4 {[%clk 0:00:13.8]} 83... Bb1 {[%clk 0:00:37.9]} 84.
Qe3 {[%clk 0:00:11.6]} 84... Qf7 {[%clk 0:00:36.2]} 85. Qg5 {[%clk 0:00:10.3]}
85... Be4 {[%clk 0:00:36.4]} 86. Qe3 {[%clk 0:00:11.2]} 86... Bf5 {[%clk
0:00:33.2]} 87. Qg5 {[%clk 0:00:11]} 87... Bg4 {[%clk 0:00:32]} 88. Qe3 {[%clk
0:00:11.6]} 88... Kg8 {[%clk 0:00:31.1]} 89. Kg2 {[%clk 0:00:12]} 89... Bf5
{[%clk 0:00:31.3]} 90. Qg5+ {[%clk 0:00:12.6]} 90... Kf8 {[%clk 0:00:31.6]} 91.
Qd8+ {[%clk 0:00:11.7]} 91... Kg7 {[%clk 0:00:32.1]} 92. Qg5+ {[%clk 0:00:12.9]}
92... Kh7 {[%clk 0:00:31.2]} 93. Kf2 {[%clk 0:00:13.5]} 93... Bg6 {[%clk
0:00:30.4]} 94. Qe5 {[%clk 0:00:09.9]} 94... Qd7 {[%clk 0:00:30.8]} 95. Kg2
{[%clk 0:00:10]} 95... Bf5 {[%clk 0:00:30.3]} 96. Kf2 {[%clk 0:00:10.7]} 96...
Bg6 {[%clk 0:00:29.1]} 97. Qg5 {[%clk 0:00:10]} 97... Qc7 {[%clk 0:00:29.6]} 98.
Qd2 {[%clk 0:00:09.1]} 98... Qe7 {[%clk 0:00:28.9]} 99. Qf4 {[%clk 0:00:09.8]}
99... Kg7 {[%clk 0:00:30.1]} 100. Qd2 {[%clk 0:00:08.6]} 100... Qf6 {[%clk
0:00:29.7]} 101. Qe3 {[%clk 0:00:07.6]} 101... Kf7 {[%clk 0:00:31]} 102. Kg2
{[%clk 0:00:05.5]} 102... Qf5 {[%clk 0:00:29]} 103. Qh6 {[%clk 0:00:03.7]}
103... Qc2+ {[%clk 0:00:28.8]} 104. Kg1 {[%clk 0:00:05.1]} 104... Qd1+ {[%clk
0:00:29.8]} 105. Kg2 {[%clk 0:00:06.2]} 105... Qxd4 {[%clk 0:00:30.3]} 106. Qg5
{[%clk 0:00:06.8]} 106... Qf6 {[%clk 0:00:28.5]} 107. Qc1 {[%clk 0:00:05.7]}
107... Qe7 {[%clk 0:00:21.2]} 108. Qf4+ {[%clk 0:00:06.3]} 108... Kg7 {[%clk
0:00:22.3]} 109. Qd4+ {[%clk 0:00:07.3]} 109... Kh7 {[%clk 0:00:23.2]} 110. Kf2
{[%clk 0:00:03.7]} 110... Bf5 {[%clk 0:00:24.3]} 111. Qf4 {[%clk 0:00:04.4]}
111... Bg6 {[%clk 0:00:24.5]} 112. Qd4 {[%clk 0:00:05.1]} 112... Qd7 {[%clk
0:00:25.5]} 113. Kg2 {[%clk 0:00:05.8]} 113... Bf5 {[%clk 0:00:26.4]} 114. Kf2
{[%clk 0:00:07]} 114... Kg6 {[%clk 0:00:27.4]} 115. Qh8 {[%clk 0:00:07.6]}
115... d4 {[%clk 0:00:26.7]} 116. Qg8+ {[%clk 0:00:08.3]} 116... Kf6 {[%clk
0:00:27.7]} 117. Qg5+ {[%clk 0:00:07.1]} 117... Ke6 {[%clk 0:00:27.3]} 118. Qxh5
{[%clk 0:00:07.1]} 118... d3 {[%clk 0:00:28]} 119. Qh6+ {[%clk 0:00:08.4]}
119... Kd5 {[%clk 0:00:27.4]} 120. Qe3 {[%clk 0:00:09.8]} 120... Kc4 {[%clk
0:00:26.9]} 121. Ke1 {[%clk 0:00:08.7]} 121... Qd4 {[%clk 0:00:25.2]} 122. Qxd4+
{[%clk 0:00:09]} 122... Kxd4 {[%clk 0:00:27.1]} 123. Kd2 {[%clk 0:00:10.4]}
123... Kxc5 {[%clk 0:00:25.7]} 124. g4 {[%clk 0:00:11.5]} 124... Bh7 {[%clk
0:00:25]} 125. h5 {[%clk 0:00:12.9]} 125... Kd6 {[%clk 0:00:25.3]} 126. g5
{[%clk 0:00:14.3]} 126... Ke6 {[%clk 0:00:25.3]} 127. g6 {[%clk 0:00:15]} 127...
Kf6 {[%clk 0:00:16.4]} 128. gxh7 {[%clk 0:00:15.6]} 128... Kg7 {[%clk
0:00:17.9]} 129. Kxd3 {[%clk 0:00:16.8]} 129... Kxh7 {[%clk 0:00:19.5]} 130. Ke4
{[%clk 0:00:18.1]} 130... Kh6 {[%clk 0:00:21.1]} 131. Ke5 {[%clk 0:00:19]}
131... Kxh5 {[%clk 0:00:17.2]} 132. f4 {[%clk 0:00:19.9]} 132... Kg6 {[%clk
0:00:18.5]} 133. Ke6 {[%clk 0:00:21.3]} 133... Kg7 {[%clk 0:00:20]} 134. Ke7
{[%clk 0:00:22.3]} 134... Kg6 {[%clk 0:00:20]} 135. Ke6 {[%clk 0:00:23.5]}
135... Kg7 {[%clk 0:00:21.6]} 136. f5 {[%clk 0:00:23.2]} 136... Kf8 {[%clk
0:00:22.6]} 137. f6 {[%clk 0:00:24.7]} 137... Ke8 {[%clk 0:00:21.5]} 138. Kd6
{[%clk 0:00:20.1]} 138... Kf7 {[%clk 0:00:22.5]} 139. Ke5 {[%clk 0:00:21.5]}
139... Kf8 {[%clk 0:00:19.5]} 140. Kd6 {[%clk 0:00:22.3]} 140... Kf7 {[%clk
0:00:19.9]} 141. Ke5 {[%clk 0:00:23.5]} 141... Kg8 {[%clk 0:00:20.4]} 142. Ke6
{[%clk 0:00:22.3]} 142... Kf8 {[%clk 0:00:21.5]} 143. Ke5 {[%clk 0:00:16.8]}
143... Kf7 {[%clk 0:00:22.6]} 144. Kf5 {[%clk 0:00:18]} 144... c5 {[%clk
0:00:21.6]} 145. Ke5 {[%clk 0:00:19.5]} 145... c4 {[%clk 0:00:22.9]} 146. Kd4
{[%clk 0:00:20.3]} 146... Kxf6 {[%clk 0:00:24.8]} 147. Kxc4 {[%clk 0:00:21.8]}
147... Ke7 {[%clk 0:00:26.6]} 148. Kc5 {[%clk 0:00:22.3]} 148... Kd7 {[%clk
0:00:28.4]} 149. Kd5 {[%clk 0:00:23.5]} 149... Kc8 {[%clk 0:00:30.3]} 150. Kc4
{[%clk 0:00:21.2]} 150... Kd7 {[%clk 0:00:30.6]} 151. Kd5 {[%clk 0:00:22.3]}
151... Kd8 {[%clk 0:00:30.1]} 152. Kd4 {[%clk 0:00:21.3]} 152... Ke7 {[%clk
0:00:30.1]} 153. Ke5 {[%clk 0:00:21.7]} 153... Ke8 {[%clk 0:00:30.1]} 154. Ke4
{[%clk 0:00:22.1]} 154... Kd7 {[%clk 0:00:27.9]} 155. Kd5 {[%clk 0:00:22.7]}
155... Kc8 {[%clk 0:00:27.2]} 156. Kc4 {[%clk 0:00:23.5]} 156... Kb8 {[%clk
0:00:27.8]} 157. Kb4 {[%clk 0:00:23.3]} 157... Ka7 {[%clk 0:00:27.3]} 158. Kc3
{[%clk 0:00:21.7]} 158... Ka8 {[%clk 0:00:27.4]} 159. Kd3 {[%clk 0:00:22]}
159... Kb8 {[%clk 0:00:28]} 160. Kc3 {[%clk 0:00:20.1]} 160... Kc7 {[%clk
0:00:28.9]} 161. Kd4 {[%clk 0:00:19]} 161... Kd6 {[%clk 0:00:29.3]} 162. Kc4
{[%clk 0:00:20.5]} 162... Kc6 {[%clk 0:00:30.7]} 163. Kb4 {[%clk 0:00:22.1]}
163... Kd5 {[%clk 0:00:32.1]} 164. Kb3 {[%clk 0:00:23.6]} 164... Kc5 {[%clk
0:00:33.6]} 165. Ka4 {[%clk 0:00:25.2]} 165... Kc4 {[%clk 0:00:34.3]} 166. Ka3
{[%clk 0:00:26.8]} 166... Kb5 {[%clk 0:00:36.2]} 0-1

[Event "*** Biggest EVER Titled Tuesday"]
[Site "Chess.com"]
[Date "2018.04.17"]
[Round "4"]
[White "Triumphmate"]
[Black "Kislov_Oleg"]
[Result "0-1"]
[WhiteElo "2162"]
[BlackElo "2269"]
[TimeControl "180+2"]
[EndTime "13:47:51 PDT"]
[Termination "Kislov_Oleg won by resignation"]

1. e4 {[%clk 0:03:01.9]} 1... e6 {[%clk 0:03:00]} 2. d4 {[%clk 0:03:02.3]} 2...
d5 {[%clk 0:03:01.2]} 3. Nd2 {[%clk 0:03:02.5]} 3... Nf6 {[%clk 0:03:02.1]} 4.
e5 {[%clk 0:03:02.8]} 4... Nfd7 {[%clk 0:03:03.5]} 5. Bd3 {[%clk 0:03:03.8]}
5... c5 {[%clk 0:03:04.8]} 6. c3 {[%clk 0:03:05.1]} 6... Nc6 {[%clk 0:03:06.4]}
7. Ne2 {[%clk 0:03:06.2]} 7... cxd4 {[%clk 0:03:07.6]} 8. cxd4 {[%clk
0:03:06.8]} 8... f6 {[%clk 0:03:08.9]} 9. exf6 {[%clk 0:03:07.7]} 9... Nxf6
{[%clk 0:03:10]} 10. Nf3 {[%clk 0:03:09.6]} 10... Bd6 {[%clk 0:03:10.5]} 11. O-O
{[%clk 0:03:11.5]} 11... O-O {[%clk 0:03:11.9]} 12. Bg5 {[%clk 0:03:10.7]} 12...
Qc7 {[%clk 0:03:10.4]} 13. Ng3 {[%clk 0:03:11.7]} 13... e5 {[%clk 0:03:05]} 14.
dxe5 {[%clk 0:03:11.6]} 14... Nxe5 {[%clk 0:03:04.6]} 15. Nxe5 {[%clk
0:03:13.2]} 15... Bxe5 {[%clk 0:03:05.3]} 16. f4 {[%clk 0:03:09.9]} 16... Bxb2
{[%clk 0:02:56.6]} 17. Rb1 {[%clk 0:03:06.9]} 17... Bd4+ {[%clk 0:02:29.2]} 18.
Kh1 {[%clk 0:03:07.5]} 18... Bb6 {[%clk 0:02:25.8]} 19. Nh5 {[%clk 0:03:07]}
19... Ng4 {[%clk 0:02:16.5]} 20. Rc1 {[%clk 0:02:51.4]} 20... Qf7 {[%clk
0:02:12.9]} 21. Rxc8 {[%clk 0:02:50.2]} 21... Qxh5 {[%clk 0:02:12.4]} 22. Rxf8+
{[%clk 0:02:46.3]} 22... Rxf8 {[%clk 0:02:12.3]} 23. h3 {[%clk 0:02:43.2]} 23...
Nf2+ {[%clk 0:02:12.8]} 24. Rxf2 {[%clk 0:02:42.9]} 24... Qxd1+ {[%clk
0:02:13.6]} 0-1

[Event "*** Biggest EVER Titled Tuesday"]
[Site "Chess.com"]
[Date "2018.04.17"]
[Round "4"]
[White "MikaelyanArman"]
[Black "AlexZambrano"]
[Result "1-0"]
[WhiteElo "2584"]
[BlackElo "2362"]
[TimeControl "180+2"]
[EndTime "13:48:38 PDT"]
[Termination "MikaelyanArman won by resignation"]

1. e4 {[%clk 0:03:01.9]} 1... e6 {[%clk 0:02:54.9]} 2. d4 {[%clk 0:03:02.3]}
2... d5 {[%clk 0:02:55.3]} 3. Nc3 {[%clk 0:03:03.3]} 3... Nf6 {[%clk 0:02:55.3]}
4. Bg5 {[%clk 0:03:02.8]} 4... Be7 {[%clk 0:02:55.8]} 5. e5 {[%clk 0:03:01.9]}
5... Nfd7 {[%clk 0:02:56.7]} 6. Bxe7 {[%clk 0:03:00.6]} 6... Qxe7 {[%clk
0:02:56.8]} 7. f4 {[%clk 0:03:01.6]} 7... a6 {[%clk 0:02:57.3]} 8. Nf3 {[%clk
0:03:02.2]} 8... c5 {[%clk 0:02:58.3]} 9. Qd2 {[%clk 0:03:03.5]} 9... Nc6 {[%clk
0:02:57.3]} 10. O-O-O {[%clk 0:03:03]} 10... Nxd4 {[%clk 0:02:58.2]} 11. Nxd4
{[%clk 0:03:03.7]} 11... cxd4 {[%clk 0:02:59.1]} 12. Qxd4 {[%clk 0:03:03.7]}
12... O-O {[%clk 0:03:00.5]} 13. h4 {[%clk 0:03:03]} 13... Qc5 {[%clk
0:03:00.5]} 14. Qd2 {[%clk 0:02:48.1]} 14... b5 {[%clk 0:02:59.5]} 15. Bd3
{[%clk 0:02:48.4]} 15... Nb6 {[%clk 0:02:56.4]} 16. h5 {[%clk 0:02:35.6]} 16...
Nc4 {[%clk 0:02:53.4]} 17. Bxc4 {[%clk 0:02:36.5]} 17... bxc4 {[%clk 0:02:54.4]}
18. h6 {[%clk 0:02:37.1]} 18... g6 {[%clk 0:02:55.5]} 19. f5 {[%clk 0:02:35.7]}
19... Rd8 {[%clk 0:02:45.7]} 20. Qg5 {[%clk 0:02:34.1]} 20... Bb7 {[%clk
0:02:44.2]} 21. fxe6 {[%clk 0:02:25.5]} 21... fxe6 {[%clk 0:02:44.6]} 22. Qf6
{[%clk 0:02:19]} 22... Rf8 {[%clk 0:02:06.7]} 1-0